fUST/lending_fUST_20260422
["ID","MTS","AMOUNT","RATE_DAILY","PERIOD"]
[420968066,1776822641125,-2210.0,0.00018024,2]
[420968067,1776822641134,-244.66340133,0.0001808,2]
[420968068,1776822641143,-259.0,0.00018148,2]
[420968069,1776822641153,-10000.0,0.00018247,2]
[420968070,1776822641162,-2761.11,0.00018247,2]
[420968071,1776822641171,-2761.11,0.00018247,2]
[420968072,1776822641180,-3679.69,0.00018247,2]
[420968073,1776822641190,-244.66340133,0.00018298,7]
[420968074,1776822641199,-1098.879497,0.00018379,2]
[420968075,1776822641209,-346.143478,0.000184,2]
[420968077,1776822641218,-455.7675055,0.00018436,2]
[420968079,1776822641227,-244.66340133,0.00018515,7]
[420968080,1776822641236,-244.66340133,0.00018733,14]
[420968081,1776822641246,-1000.0,0.00018766,2]
[420968082,1776822641255,-244.0,0.00018766,2]
[420968083,1776822641265,-1000.0,0.000188,7]
[420968084,1776822641274,-164.0,0.000188,7]
[420968085,1776822641284,-152.0,0.00018845,7]
[420968086,1776822641294,-152.0,0.00018845,7]
[420968087,1776822641303,-152.0,0.00018845,7]
[420968088,1776822641312,-152.0,0.00018845,7]
[420968089,1776822641322,-152.0,0.00018845,7]
[420968090,1776822641331,-152.0,0.00018845,7]
[420968091,1776822641340,-152.0,0.00018845,7]
[420968092,1776822641468,-152.0,0.00018845,7]
[420968093,1776822641478,-152.0,0.00018845,7]
[420968094,1776822641487,-152.0,0.00018845,7]
[420968095,1776822641496,-152.0,0.00018864,7]
[420968096,1776822641506,-152.0,0.00018864,7]
[420968097,1776822641515,-152.0,0.00018864,7]
[420968098,1776822641524,-152.0,0.00018864,7]
[420968099,1776822641535,-152.0,0.00018864,7]
[420968100,1776822641544,-152.0,0.00018864,7]
[420968101,1776822641553,-152.0,0.00018864,7]
[420968102,1776822641563,-152.0,0.00018864,7]
[420968103,1776822641572,-152.0,0.00018864,7]
[420968104,1776822641582,-152.0,0.00018864,7]
[420968105,1776822641591,-150.0,0.00018864,2]
[420968106,1776822641601,-277.47033542,0.00018924,2]
[420968107,1776822641610,-244.66340133,0.0001895,14]
[420968108,1776822641619,-557.0,0.00019,2]
[420968109,1776822641628,-259.0,0.00019148,2]
[420968110,1776822641637,-244.66340133,0.00019168,30]
[420968111,1776822641646,-328.6733,0.00019178,2]
[420968112,1776822641655,-428.6728,0.00019178,2]
[420968113,1776822641665,-453.55,0.00019178,2]
[420968114,1776822641674,-244.66340133,0.00019385,30]
[420968115,1776822641683,-3290.24980157,0.00019395,2]
[420968116,1776822641692,-62142.38891761,0.00019404,2]
[420968117,1776822641701,-201.0,0.00019507,3]
[420968118,1776822641710,-300.0,0.00019589,3]
[420968119,1776822641719,-244.66340133,0.00019603,60]
[420968120,1776822641729,-275.50831126,0.000197,2]
[420968121,1776822641739,-7056.51110073,0.000197,2]
[420968122,1776822641748,-500.0,0.00019773,2]
[420968123,1776822641758,-500.0,0.00019773,2]
[420968124,1776822641767,-500.0,0.00019773,2]
[420968125,1776822641776,-501.53062289,0.00019773,2]
[420968126,1776822641786,-175148.89964547,0.000198,14]
[420968127,1776822641859,-792.0,0.000159,2]
[420968128,1776822641868,-152.0,0.00018927,7]
[420968129,1776822641878,-152.0,0.00018927,7]
[420968130,1776822641887,-2809.86451051,0.000198,14]
[420968131,1776822641898,-1765.38613729,0.000198,14]
[420968140,1776822643721,-2043.14560171,0.00013798,2]
[420968141,1776822643731,-152.0,0.00018927,7]
[420968142,1776822643741,-152.0,0.00018927,7]
[420968143,1776822643751,-152.0,0.00018927,7]
[420968144,1776822643761,-152.0,0.00018927,7]
[420968145,1776822643774,-1220.74730285,0.000198,14]
[420968161,1776822646729,-2043.1456017,0.00013798,2]
[420968162,1776822646739,-2043.1456017,0.00013799,2]
[420968163,1776822646749,-160.0,0.00017157,2]
[420968164,1776822646759,-152.0,0.00018927,7]
[420968165,1776822646768,-152.0,0.00018927,7]
[420968166,1776822646778,-152.0,0.00018927,7]
[420968167,1776822646787,-152.0,0.00018946,7]
[420968168,1776822646801,-2193.49986771,0.00019395,2]
[420968169,1776822646814,-1233.05892888,0.000198,14]
[420968170,1776822646830,-10495.35197248,0.000198,14]
[420968173,1776822856898,500.0,0.00024657,120]
[420968174,1776822857147,500.0,0.00024657,120]
[420968175,1776822857377,500.0,0.00024657,120]
[420968176,1776822857604,500.0,0.00024657,120]
[420968177,1776822857823,500.0,0.00024657,120]
[420968178,1776822858043,500.0,0.00024657,120]
[420968179,1776822858274,500.0,0.00024657,120]
[420968180,1776822858520,500.0,0.00024657,120]
[420968181,1776822858738,500.0,0.00024657,120]
[420968182,1776822858969,500.0,0.00024657,120]
[420968183,1776822859188,500.0,0.00024657,120]
[420968184,1776822859402,500.0,0.00024657,120]
[420968185,1776822859633,500.0,0.00024657,120]
[420968186,1776822859859,500.0,0.00024657,120]
[420968187,1776822860079,500.0,0.00024657,120]
[420968188,1776822860291,500.0,0.00024657,120]
[420968189,1776822860515,500.0,0.00024657,120]
[420968190,1776822860744,500.0,0.00024657,120]
[420968191,1776822860969,500.0,0.00024657,120]
[420968192,1776822861197,500.0,0.00024657,120]
[420968193,1776822861427,500.0,0.00024657,120]
[420968194,1776822861662,500.0,0.00024657,120]
[420968195,1776822861925,500.0,0.00024657,120]
[420968196,1776822862165,500.0,0.00024657,120]
[420968197,1776822862409,500.0,0.00024657,120]
[420968198,1776822862674,500.0,0.00024657,120]
[420968199,1776822862905,500.0,0.00024657,120]
[420968200,1776822863124,500.0,0.00024657,120]
[420968201,1776822863368,500.0,0.00024657,120]
[420968202,1776822863767,500.0,0.00024657,120]
[420968203,1776822863836,500.0,0.00024657,120]
[420968204,1776822864063,500.0,0.00024657,120]
[420968205,1776822864311,500.0,0.00024657,120]
[420968206,1776822864546,500.0,0.00024657,120]
[420968207,1776822864791,500.0,0.00024657,120]
[420968208,1776822865033,500.0,0.00024657,120]
[420968209,1776822865264,500.0,0.00024657,120]
[420968210,1776822865499,500.0,0.00024657,120]
[420968211,1776822865741,500.0,0.00024657,120]
[420968212,1776822865982,500.0,0.00024657,120]
[420968213,1776822866239,500.0,0.00024657,120]
[420968214,1776822866480,500.0,0.00024657,120]
[420968215,1776822866704,500.0,0.00024657,120]
[420968216,1776822866926,500.0,0.00024657,120]
[420968217,1776822867307,500.0,0.00024657,120]
[420968218,1776822867543,500.0,0.00024657,120]
[420968219,1776822867786,500.0,0.00024657,120]
[420968220,1776822868018,500.0,0.00024657,120]
[420968221,1776822868268,500.0,0.00024657,120]
[420968222,1776822868544,500.0,0.00024657,120]
[420968223,1776822868785,500.0,0.00024657,120]
[420968224,1776822869017,500.0,0.00024657,120]
[420968225,1776822869281,500.0,0.00024657,120]
[420968226,1776822869512,500.0,0.00024657,120]
[420968227,1776822869734,500.0,0.00024657,120]
[420968228,1776822869967,550.72352899,0.00024657,120]
[420968237,1776823172211,1000.0,0.00024,120]
[420968241,1776823311070,1000.0,0.00024658,120]
[420968257,1776823622661,1000.0,0.00024658,120]
[420968298,1776823832677,-499.98718643,0.00012048,10]
[420968305,1776823832733,-24.07644901,0.00012048,10]
[420968307,1776823832743,-655.15898567,0.0001217,10]
[420968312,1776823832788,-4344.84101433,0.0001217,10]
[420968313,1776823832799,-177.10970736,0.00012355,2]
[420968314,1776823832809,-160.0,0.00013628,2]
[420968317,1776823832821,-318.04927831,0.00013699,2]
[420968374,1776823841323,-1346.44188268,0.00011928,10]
[420968375,1776823841335,-726.24112291,0.00011928,10]
[420968376,1776823841345,-2547.06363544,0.00011928,10]
[420968377,1776823841410,10000.0,0.00024658,120]
[420968394,1776823843916,-391.64602107,0.00011809,10]
[420968395,1776823843925,-380.25335897,0.00011928,10]
[420968396,1776823843935,-681.95072169,0.00013699,2]
[420968397,1776823843944,-161.24879915,0.00014,2]
[420968398,1776823843954,-790.0,0.00014072,2]
[420968399,1776823843963,-300.0,0.00014073,2]
[420968400,1776823843972,-300.0,0.00014073,2]
[420968401,1776823843982,-300.0,0.00014074,2]
[420968402,1776823843991,-300.0,0.00014074,2]
[420968403,1776823844000,-300.0,0.00014074,2]
[420968404,1776823844010,-300.0,0.00014074,2]
[420968405,1776823844019,-300.0,0.00014074,2]
[420968406,1776823844028,-300.0,0.00014074,2]
[420968407,1776823844038,-300.0,0.00014074,2]
[420968408,1776823844047,-300.0,0.00014074,2]
[420968409,1776823844056,-300.0,0.00014074,2]
[420968410,1776823844065,-300.0,0.00014074,2]
[420968411,1776823844074,-300.0,0.00014074,2]
[420968412,1776823844084,-300.0,0.00014074,2]
[420968413,1776823844093,-300.0,0.00014074,2]
[420968414,1776823844102,-300.0,0.00014074,2]
[420968415,1776823844111,-300.0,0.00014074,2]
[420968416,1776823844121,-208.98945469,0.00014355,2]
[420968417,1776823844130,-213.0,0.00014575,3]
[420968418,1776823844139,-500.0,0.00014717,2]
[420968419,1776823844148,-1000.0,0.00014717,2]
[420968420,1776823844158,-2150.738,0.00014866,2]
[420968421,1776823844167,-2230.315306,0.00015414,2]
[420968422,1776823844176,-150.132,0.00015491,2]
[420968423,1776823844185,-643.902,0.00015491,2]
[420968424,1776823844194,-1411.09,0.00015491,2]
[420968425,1776823844204,-1000.0,0.00015522,2]
[420968426,1776823844213,-240.86920202,0.00016355,2]
[420968427,1776823844222,-187.0,0.00016767,3]
[420968428,1776823844233,-295.0,0.000177,2]
[420968429,1776823844242,-2541.9,0.000179,2]
[420968430,1776823844251,-2007.39702496,0.00017911,2]
[420968431,1776823844260,-272.74894934,0.00018355,2]
[420968432,1776823844269,-664.302,0.00018766,2]
[420968433,1776823844278,-158.9909464,0.00018776,2]
[420968434,1776823844287,-2541.9,0.000189,2]
[420968435,1776823844296,-190.0,0.00018959,3]
[420968436,1776823844306,-500.0,0.0001905,2]
[420968437,1776823844315,-500.0,0.0001905,2]
[420968438,1776823844324,-500.0,0.0001905,2]
[420968439,1776823844334,-500.0,0.0001905,2]
[420968440,1776823844343,-500.0,0.0001905,2]
[420968441,1776823844352,-429.18607297,0.0001905,2]
[420968442,1776823844362,-174.92009167,0.00019063,2]
[420968443,1776823844371,-153.0704978,0.00019256,2]
[420968444,1776823844380,-600.0,0.00019324,2]
[420968445,1776823844389,-2653.29412094,0.00019395,2]
[420968446,1776823844398,-2320.42105217,0.000194,2]
[420968447,1776823844408,-567.38814258,0.00019443,2]
[420968448,1776823844417,-189.6177566,0.00019443,2]
[420968449,1776823844426,-500.0,0.00019443,2]
[420968450,1776823844435,-500.0,0.00019443,2]
[420968451,1776823844444,-500.0,0.00019443,2]
[420968452,1776823844613,-4046.20453987,0.00019444,2]
[420968453,1776823844623,-498.37580187,0.00019498,2]
[420968454,1776823844633,-431.13996245,0.00019498,2]
[420968455,1776823844643,-500.0,0.00019498,2]
[420968456,1776823844652,-500.0,0.00019498,2]
[420968457,1776823844662,-500.0,0.00019498,2]
[420968458,1776823844671,-500.0,0.00019498,2]
[420968459,1776823844680,-551.16350775,0.00019498,2]
[420968460,1776823844689,-500.0,0.00019498,2]
[420968461,1776823844699,-500.0,0.00019498,2]
[420968462,1776823844708,-500.0,0.00019498,2]
[420968463,1776823844718,-97946.96540781,0.00019499,2]
[420968464,1776823844730,-25612.80759296,0.00019499,2]
[420968465,1776823844741,-29138.55034931,0.00019499,2]
[420968466,1776823844754,-288.07357235,0.00019499,2]
[420968467,1776823844773,-1474.82620582,0.00019499,2]
[420968471,1776823846918,-1768.86274729,0.00019395,2]
[420968472,1776823846927,-39116.17539216,0.00019499,2]
[420968473,1776823846938,-310.6534653,0.00019499,2]
[420968474,1776823846971,-139929.24176648,0.00019499,2]
[420968475,1776823846980,-4086.2912034,0.000195,2]
[420968476,1776823846989,-1098.8794972,0.00019544,2]
[420968477,1776823846998,-301.46367937,0.000196,2]
[420968478,1776823847007,-344.635,0.00019641,2]
[420968479,1776823847017,-528.68,0.00019642,2]
[420968480,1776823847026,-341.7767,0.00019643,2]
[420968481,1776823847034,-500.0,0.00019644,2]
[420968482,1776823847044,-174.92009166,0.00019653,2]
[420968483,1776823847053,-500.0,0.00019699,2]
[420968484,1776823847062,-500.0,0.00019699,2]
[420968485,1776823847071,-500.0,0.00019699,2]
[420968486,1776823847081,-500.0,0.00019699,2]
[420968487,1776823847090,-500.0,0.00019699,2]
[420968488,1776823847099,-500.0,0.00019699,2]
[420968489,1776823847108,-503.51731317,0.00019699,2]
[420968490,1776823847117,-500.0,0.00019699,2]
[420968491,1776823847126,-500.0,0.00019699,2]
[420968492,1776823847134,-500.33424985,0.00019699,2]
[420968493,1776823847143,-1207.93,0.000197,2]
[420968494,1776823847152,-6350.85999063,0.000197,2]
[420968495,1776823847161,-504.2586834,0.00019773,2]
[420968496,1776823847169,-501.88015361,0.00019773,2]
[420968497,1776823847178,-500.0,0.00019773,2]
[420968498,1776823847187,-519.83352913,0.00019773,2]
[420968499,1776823847196,-500.0,0.00019773,2]
[420968500,1776823847205,-160.24035404,0.00019799,2]
[420968501,1776823847214,-654037.14351288,0.000198,14]
[420968502,1776823847229,-9992.92028562,0.000198,14]
[420968503,1776823853186,398.7,0.00024657,120]
[420968506,1776823934642,1000.0,0.00024658,120]
[420968507,1776823971716,600.0,0.000246,120]
[420968508,1776824009833,8650.82,0.00024658,120]
[420968512,1776824115443,13290.0,0.00024657,120]
[420968513,1776824225436,59031.26,0.000246,120]
[420968515,1776824247915,1000.0,0.00024658,120]
[420968518,1776824501445,44000.0,0.00024657,120]
[420968520,1776824530839,5000.0,0.00024657,120]
[420968521,1776824558501,1000.0,0.00024658,120]
[420968522,1776824575063,5489.0,0.00024657,120]
[420968524,1776824784363,866.34,0.00024658,120]
[420968526,1776824867308,1000.0,0.00024658,120]
[420968527,1776824902404,9442.94,0.00024658,120]
[420968538,1776825031872,-5000.0,0.00013027,10]
[420968539,1776825031882,-169.7353611,0.00013344,2]
[420968540,1776825031891,-1000.0,0.00013699,2]
[420968541,1776825031901,-160.0,0.00015269,2]
[420968542,1776825031911,-200.28772609,0.00015344,2]
[420968543,1776825031920,-300.0,0.00016043,2]
[420968544,1776825031930,-441.0,0.00016044,2]
[420968545,1776825031940,-739.0,0.00016044,2]
[420968546,1776825031950,-184.0,0.00016044,2]
[420968547,1776825031959,-291.0,0.00016219,3]
[420968548,1776825031968,-537.6845,0.00016354,2]
[420968549,1776825031978,-2150.738,0.00016354,2]
[420968550,1776825031987,-300.0,0.00016364,2]
[420968551,1776825031996,-300.0,0.00016364,2]
[420968552,1776825032006,-300.0,0.00016364,2]
[420968553,1776825032015,-300.0,0.00016364,2]
[420968554,1776825032024,-300.0,0.00016364,2]
[420968555,1776825032034,-300.0,0.00016364,2]
[420968556,1776825032044,-300.0,0.00016364,2]
[420968557,1776825032053,-300.0,0.00016364,2]
[420968558,1776825032063,-300.0,0.00016364,2]
[420968559,1776825032073,-199.64819723,0.00016364,2]
[420968560,1776825032085,-100.35180277,0.00016364,2]
[420968561,1776825032095,-300.0,0.00016364,2]
[420968562,1776825032104,-300.0,0.00016364,2]
[420968563,1776825032114,-300.0,0.00016364,2]
[420968564,1776825032123,-300.0,0.00016364,2]
[420968565,1776825032132,-300.0,0.00016364,2]
[420968566,1776825032143,-557.5788265,0.00016409,2]
[420968567,1776825032153,-593.4415687,0.00016464,2]
[420968568,1776825032162,-224.1712713,0.00016893,2]
[420968569,1776825032172,-234.3,0.0001724,2]
[420968570,1776825032182,-218.47,0.0001724,2]
[420968572,1776825032192,-230.84009109,0.00017344,2]
[420968573,1776825032202,-172.43,0.0001765,2]
[420968574,1776825032212,-351.45,0.0001765,2]
[420968575,1776825032222,-327.71,0.0001765,2]
[420968576,1776825032233,-187.28,0.00017758,2]
[420968578,1776825032243,-187.27,0.00018037,2]
[420968579,1776825032253,-229.91,0.0001806,2]
[420968581,1776825032263,-468.6,0.0001806,2]
[420968583,1776825032272,-436.95,0.0001806,2]
[420968584,1776825032282,-501.72524989,0.00018217,2]
[420968586,1776825032292,-232.52118975,0.00018247,2]
[420968587,1776825032303,-1343.7500641,0.00018247,2]
[420968588,1776825032315,-1163.20743793,0.00018247,2]
[420968614,1776825038267,-302.07355435,0.00018247,2]
[420968615,1776825038279,-1555.79927283,0.00018247,2]
[420968616,1776825038436,-1925.81703556,0.00018247,2]
[420968617,1776825038497,-3476.83144548,0.00018247,2]
[420968618,1776825038507,-644.07638494,0.00018334,3]
[420968619,1776825038516,-325.344761,0.00018434,2]
[420968620,1776825038526,-287.39,0.00018471,2]
[420968621,1776825038535,-585.75,0.00018471,2]
[420968622,1776825038544,-546.19,0.00018471,2]
[420968623,1776825038554,-234.09,0.00018595,2]
[420968624,1776825038563,-600.0,0.0001861,2]
[420968625,1776825038573,-344.87,0.00018881,2]
[420968626,1776825038582,-702.91,0.00018881,2]
[420968627,1776825038591,-655.43,0.00018881,2]
[420968628,1776825038600,-168.0,0.00018959,3]
[420968629,1776825038610,-353.0,0.00019,2]
[420968630,1776825038620,-584.0,0.00019,2]
[420968631,1776825038629,-818.0,0.00019,2]
[420968632,1776825038638,-647.0,0.00019,2]
[420968633,1776825038648,-441.0,0.00019044,2]
[420968634,1776825038658,-739.0,0.00019044,2]
[420968635,1776825038668,-184.0,0.00019044,2]
[420968636,1776825038677,-310.6534653,0.00019144,2]
[420968637,1776825038687,-398.10424155,0.00019242,2]
[420968638,1776825038697,-2147.65,0.00019244,2]
[420968639,1776825038707,-3194.37,0.00019244,2]
[420968640,1776825038716,-379.56,0.00019248,2]
[420968641,1776825038725,-338.9,0.00019249,2]
[420968642,1776825038734,-1190.0,0.0001925,2]
[420968643,1776825038743,-325.344761,0.00019256,2]
[420968644,1776825038753,-501.32001614,0.00019273,2]
[420968645,1776825038762,-402.35,0.00019291,2]
[420968646,1776825038771,-820.06,0.00019291,2]
[420968647,1776825038780,-764.67,0.00019291,2]
[420968648,1776825038790,-261.39245609,0.00019344,2]
[420968649,1776825038799,-531.442,0.00019395,2]
[420968650,1776825038809,-922.23,0.00019699,2]
[420968651,1776825038818,-1179.24183153,0.00019699,2]
[420968652,1776825038827,-500.0,0.00019773,2]
[420968653,1776825038837,-500.0,0.00019773,2]
[420968654,1776825038846,-500.0,0.00019773,2]
[420968655,1776825038855,-1190.0,0.00019798,2]
[420968656,1776825038865,-301.79797372,0.00019799,2]
[420968657,1776825038874,-348.86306131,0.00019799,2]
[420968658,1776825038883,-500.0,0.00019799,2]
[420968659,1776825039045,-500.0,0.00019799,2]
[420968660,1776825039064,-500.0,0.00019799,2]
[420968661,1776825039074,-500.0,0.00019799,2]
[420968662,1776825039083,-500.0,0.00019799,2]
[420968663,1776825039092,-500.0,0.00019799,2]
[420968664,1776825039102,-500.0,0.00019799,2]
[420968665,1776825039111,-500.0,0.00019799,2]
[420968666,1776825039121,-500.0,0.00019799,2]
[420968667,1776825039130,-335.81445543,0.00019799,2]
[420968668,1776825039139,-196054.53262699,0.000198,14]
[420968699,1776825045792,-786.16122102,0.00019699,2]
[420968701,1776825045802,-18503.95879247,0.000198,14]
[420968762,1776825046333,-2122.12298885,0.000198,14]
[420968769,1776825046392,-227115.71790749,0.000198,14]
[420968772,1776825046403,-7838.16270782,0.000198,14]
[420968774,1776825046414,-19310.237136,0.000198,14]
[420968780,1776825046459,-4130.97077,0.000198,14]
[420969253,1776825175354,1000.0,0.00024658,120]
[420969264,1776825379098,574.0,0.00024657,120]
[420969265,1776825483291,1000.0,0.00024658,120]
[420969269,1776825787666,3262.72,0.00024658,120]
[420969270,1776825789431,1000.0,0.00024658,120]
[420969279,1776825972734,202.0,0.00024658,120]
[420969280,1776826094469,1204.13031094,0.00024658,120]
[420969314,1776826232059,-888.42837012,0.00011432,10]
[420969315,1776826232068,-556.09613366,0.00011547,10]
[420969317,1776826232078,-5000.0,0.00011664,10]
[420969318,1776826232087,-164.73024841,0.00012203,2]
[420969320,1776826232096,-1000.0,0.00013699,2]
[420969321,1776826232104,-194.38169312,0.00014204,2]
[420969323,1776826232113,-162.0,0.00014575,3]
[420969325,1776826232122,-1200.0,0.00015618,2]
[420969326,1776826232131,-1000.0,0.00015619,2]
[420969327,1776826232140,-160.0,0.00015841,2]
[420969329,1776826232149,-300.0,0.00016081,2]
[420969330,1776826232158,-300.0,0.00016081,2]
[420969332,1776826232167,-300.0,0.00016081,2]
[420969333,1776826232176,-300.0,0.00016081,2]
[420969334,1776826232185,-224.03313784,0.00016204,2]
[420969335,1776826232194,-2209.08,0.00016617,2]
[420969336,1776826232202,-1268.168,0.00016617,2]
[420969337,1776826232211,-150.572,0.00016617,2]
[420969338,1776826232221,-300.0,0.00016948,2]
[420969339,1776826232230,-300.0,0.00016948,2]
[420969340,1776826232239,-300.0,0.00016948,2]
[420969342,1776826232248,-300.0,0.00016948,2]
[420969344,1776826232258,-300.0,0.00016948,2]
[420969345,1776826232267,-300.0,0.00016948,2]
[420969347,1776826232276,-300.0,0.00016948,2]
[420969348,1776826232285,-300.0,0.00016948,2]
[420969349,1776826232293,-300.0,0.00016948,2]
[420969350,1776826232302,-300.0,0.00016948,2]
[420969351,1776826232311,-300.0,0.00016948,2]
[420969352,1776826232320,-300.0,0.00016948,2]
[420969353,1776826232329,-300.0,0.00016948,2]
[420969354,1776826232339,-300.0,0.00016948,2]
[420969355,1776826232348,-300.0,0.00016948,2]
[420969356,1776826232357,-315.8372002,0.0001755,2]
[420969357,1776826232366,-200.0,0.0001782,2]
[420969358,1776826232375,-160.0,0.00017863,3]
[420969359,1776826232385,-253.68458255,0.00018204,2]
[420969360,1776826232394,-287.71609865,0.00018216,2]
[420969361,1776826232403,-2150.738,0.00018353,2]
[420969362,1776826232412,-325.344761,0.00018479,2]
[420969363,1776826232421,-328.48000755,0.000189,2]
[420969364,1776826232431,-182.0,0.00019,2]
[420969365,1776826232614,-654.79092605,0.00019,2]
[420969366,1776826232624,-180.90934082,0.00019016,2]
[420969367,1776826232633,-500.0,0.00019042,2]
[420969368,1776826232643,-211.2585816,0.00019042,2]
[420969369,1776826232652,-155.81826395,0.00019042,2]
[420969370,1776826232664,-344.18173605,0.00019042,2]
[420969371,1776826232674,-43.84406643,0.00019042,2]
[420969372,1776826232690,-456.15593357,0.00019042,2]
[420969373,1776826232699,-143.99171915,0.00019042,2]
[420969379,1776826239091,-4681.54622423,0.00011318,10]
[420969380,1776826239103,-318.45377577,0.00011318,10]
[420969381,1776826239112,-5392.21700112,0.00019043,2]
[420969469,1776826561827,313.638,0.00024658,120]
[420969470,1776826837623,100000.0,0.000246,120]
[420969471,1776826918990,-3357.15272772,0.00013426,10]
[420969472,1776826947453,210.91529949,0.00024658,120]
[420969473,1776827108277,1000.0,0.00023,120]
[420969548,1776827440837,-2317.42545947,0.00012741,10]
[420969670,1776827446622,-1429.89635795,0.00012741,10]
[420969774,1776828140242,10000.0,0.000246,120]
[420969775,1776828177549,14467.0,0.0002465,120]
[420969776,1776828228073,344594.33,0.00024657,120]
[420970040,1776828688139,1286.1546544,0.00024,120]
[420970041,1776828753636,187.97,0.00024658,120]
[420970046,1776829584656,2501.80930047,0.00024657,120]
[420970047,1776829716937,155.0,0.00024658,120]
[420970494,1776831043071,-4747.05,9.542e-05,10]
[420970497,1776831043082,-252.95,9.542e-05,10]
[420970499,1776831043091,-154.39252679,9.59e-05,2]
[420970501,1776831043100,-153.09,9.639e-05,9]
[420970502,1776831043109,-182.18318161,0.0001159,2]
[420970505,1776831043119,-978.32551869,0.00011616,2]
[420970649,1776831046109,-1106.04136724,0.00011616,2]
[420970650,1776831046119,-4415.33080547,0.00011816,2]
[420970651,1776831046129,-2316.71673029,0.00012,2]
[420970660,1776831786735,524.68,0.00024657,120]
[420970685,1776832232055,-2980.62013205,9.706e-05,10]
[420970686,1776832232066,-2019.37986795,9.706e-05,10]
[420970687,1776832232075,-5000.0,9.804e-05,10]
[420970689,1776832232085,-463.27251101,9.903e-05,2]
[420970691,1776832232095,-158.32031577,9.903e-05,2]
[420970693,1776832232109,-208.67968423,9.903e-05,2]
[420970694,1776832232119,-57.05084727,0.00010113,2]
[420970696,1776832232130,-732.51798206,0.00010113,2]
[420970805,1776832239061,-5000.0,0.00010012,10]
[420970806,1776832239072,-410.43117067,0.00010113,2]
[420970807,1776832239082,-300.0,0.00010114,2]
[420970808,1776832239092,-300.0,0.00010114,2]
[420970809,1776832239102,-300.0,0.00010114,2]
[420970810,1776832239112,-162.90101262,0.00010269,2]
[420970811,1776832239122,-151.0,0.00011089,2]
[420970812,1776832239131,-151.0,0.00011089,2]
[420970813,1776832239141,-2253.40132382,0.00011089,2]
[420970814,1776832239151,-209.1674212,0.00011089,2]
[420970815,1776832239161,-393.0,0.00011124,2]
[420970816,1776832239170,-420.0,0.00011124,2]
[420970817,1776832239179,-420.0,0.00011124,2]
[420970818,1776832239189,-1680.0,0.00011124,2]
[420970819,1776832239198,-151.0,0.00011759,2]
[420970820,1776832239207,-151.0,0.00011759,2]
[420970821,1776832239216,-151.0,0.0001176,2]
[420970822,1776832239226,-151.0,0.0001176,2]
[420970823,1776832239235,-151.0,0.0001176,2]
[420970824,1776832239245,-151.0,0.0001176,2]
[420970825,1776832239254,-161.92,0.0001188,2]
[420970826,1776832239264,-7344.59777111,0.00012,2]
[420970827,1776832239274,-151.0,0.00012,2]
[420970828,1776832239283,-288.360296,0.00012,2]
[420970829,1776832239292,-500.0,0.00012,2]
[420970830,1776832239301,-5095.93828848,0.00012016,2]
[420970831,1776832239310,-300.0,0.00012051,2]
[420970832,1776832239319,-300.0,0.00012051,2]
[420970833,1776832239328,-300.0,0.00012051,2]